[Event "GrandPrix_29.05"]
[Site "Chess.com"]
[Date "2020.05.29"]
[Round "2"]
[White "Thor736"]
[Black "Hero_in_my_life"]
[Result "1/2-1/2"]
[WhiteElo "2003"]
[BlackElo "2172"]
[TimeControl "600+2"]
[EndTime "9:58:55 PDT"]
[Termination "Game drawn - insufficient material"]

1. Nf3 {[%clk 0:10:00.2]} 1... d5 {[%clk 0:09:58.4]} 2. d4 {[%clk 0:10:00]} 2...
Nf6 {[%clk 0:09:58.7]} 3. c4 {[%clk 0:10:00.8]} 3... e6 {[%clk 0:09:59.5]} 4.
Nc3 {[%clk 0:10:00.1]} 4... Be7 {[%clk 0:09:47.9]} 5. cxd5 {[%clk 0:09:45.8]}
5... exd5 {[%clk 0:09:47.7]} 6. Bf4 {[%clk 0:09:46.7]} 6... c6 {[%clk
0:09:39.7]} 7. e3 {[%clk 0:09:47.1]} 7... Bf5 {[%clk 0:09:34.8]} 8. Bd3 {[%clk
0:09:44.4]} 8... Bxd3 {[%clk 0:09:29.7]} 9. Qxd3 {[%clk 0:09:45.3]} 9... Nbd7
{[%clk 0:09:29]} 10. h3 {[%clk 0:09:42.1]} 10... h6 {[%clk 0:09:21.9]} 11. O-O
{[%clk 0:09:41.1]} 11... O-O {[%clk 0:09:19]} 12. Rab1 {[%clk 0:09:38]} 12... a5
{[%clk 0:09:08.7]} 13. Rfc1 {[%clk 0:09:31.5]} 13... Re8 {[%clk 0:09:04.4]} 14.
Ne5 {[%clk 0:09:21.9]} 14... Nxe5 {[%clk 0:09:04.5]} 15. Bxe5 {[%clk 0:09:21.4]}
15... a4 {[%clk 0:08:47]} 16. Qc2 {[%clk 0:08:51.8]} 16... b5 {[%clk 0:07:30.8]}
17. Ne2 {[%clk 0:08:21.2]} 17... Rc8 {[%clk 0:07:22.5]} 18. Ng3 {[%clk
0:08:16.8]} 18... Bd6 {[%clk 0:06:48.6]} 19. Bxd6 {[%clk 0:07:23.7]} 19... Qxd6
{[%clk 0:06:47.6]} 20. Qf5 {[%clk 0:07:16.6]} 20... g6 {[%clk 0:06:02.1]} 21.
Qf3 {[%clk 0:07:11.2]} 21... Kg7 {[%clk 0:05:51.8]} 22. Rc2 {[%clk 0:07:08.5]}
22... h5 {[%clk 0:05:24.8]} 23. h4 {[%clk 0:06:34.9]} 23... a3 {[%clk
0:05:17.1]} 24. b3 {[%clk 0:06:27.7]} 24... c5 {[%clk 0:05:15.5]} 25. dxc5
{[%clk 0:06:24.7]} 25... Rxc5 {[%clk 0:05:17.4]} 26. Rbc1 {[%clk 0:05:45.7]}
26... Rec8 {[%clk 0:05:15.3]} 27. Qd1 {[%clk 0:05:20.7]} 27... Rxc2 {[%clk
0:05:00.6]} 28. Rxc2 {[%clk 0:05:21]} 28... Rxc2 {[%clk 0:05:02.5]} 29. Qxc2
{[%clk 0:05:21.9]} 29... Qe5 {[%clk 0:05:04.4]} 30. Ne2 {[%clk 0:05:13.1]} 30...
Qb2 {[%clk 0:04:33.1]} 31. Nd4 {[%clk 0:05:07.6]} 31... Qa1+ {[%clk 0:03:44.5]}
32. Kh2 {[%clk 0:04:59.7]} 32... Ng4+ {[%clk 0:03:44.6]} 33. Kg3 {[%clk
0:05:00.5]} 33... Qh1 {[%clk 0:03:38.2]} 34. Nf3 {[%clk 0:04:34.6]} 34... Qa1
{[%clk 0:03:38]} 35. Qd2 {[%clk 0:03:40.6]} 35... Qb2 {[%clk 0:03:21.9]} 36.
Qd4+ {[%clk 0:02:06.9]} 36... Kg8 {[%clk 0:03:05.3]} 37. Qxb2 {[%clk 0:02:08.1]}
37... axb2 {[%clk 0:03:05.5]} 38. Nd2 {[%clk 0:02:09.6]} 38... b4 {[%clk
0:02:55.3]} 39. Nb1 {[%clk 0:01:40.9]} 39... Kf8 {[%clk 0:02:51.2]} 40. Kf3
{[%clk 0:01:14.5]} 40... f6 {[%clk 0:02:41.4]} 41. Ke2 {[%clk 0:01:09.1]} 41...
Ke7 {[%clk 0:02:05.7]} 42. f3 {[%clk 0:01:08]} 42... Ne5 {[%clk 0:02:05.8]} 43.
Kd2 {[%clk 0:00:49.1]} 43... g5 {[%clk 0:01:59.3]} 44. hxg5 {[%clk 0:00:49.8]}
44... fxg5 {[%clk 0:02:01.2]} 45. a3 {[%clk 0:00:21.8]} 45... bxa3 {[%clk
0:01:56.8]} 46. Nxa3 {[%clk 0:00:23]} 46... Ng6 {[%clk 0:01:58.7]} 47. Ke2
{[%clk 0:00:05.6]} 47... h4 {[%clk 0:01:54.6]} 48. b4 {[%clk 0:00:05.4]} 48...
Kd6 {[%clk 0:01:49.2]} 49. Kd2 {[%clk 0:00:05.6]} 49... Ne5 {[%clk 0:01:47.5]}
50. Ke2 {[%clk 0:00:04.4]} 50... Nc4 {[%clk 0:01:22.1]} 51. Nb1 {[%clk 0:00:04]}
51... Kc6 {[%clk 0:01:23]} 52. Kd3 {[%clk 0:00:04.2]} 52... Ne5+ {[%clk
0:01:21.6]} 53. Kc2 {[%clk 0:00:03.7]} 53... Nxf3 {[%clk 0:01:17.6]} 54. Kxb2
{[%clk 0:00:05]} 54... Ne1 {[%clk 0:01:09.1]} 55. Nc3 {[%clk 0:00:05.7]} 55...
Nxg2 {[%clk 0:01:04.5]} 56. b5+ {[%clk 0:00:07.2]} 56... Kc5 {[%clk 0:01:02.7]}
57. b6 {[%clk 0:00:07.9]} 57... Kxb6 {[%clk 0:01:02.7]} 58. Nxd5+ {[%clk
0:00:09]} 58... Kc5 {[%clk 0:01:03.3]} 59. Nf6 {[%clk 0:00:09.2]} 59... Nxe3
{[%clk 0:01:01.8]} 60. Kc3 {[%clk 0:00:10.5]} 60... h3 {[%clk 0:00:54.2]} 61.
Kd3 {[%clk 0:00:11.6]} 61... h2 {[%clk 0:00:54]} 62. Ne4+ {[%clk 0:00:12.4]}
62... Kd5 {[%clk 0:00:54.4]} 63. Ng3 {[%clk 0:00:14]} 63... Nf5 {[%clk 0:00:43]}
64. Nh1 {[%clk 0:00:14.6]} 64... g4 {[%clk 0:00:29.5]} 65. Ke2 {[%clk
0:00:10.5]} 65... g3 {[%clk 0:00:29.1]} 66. Kf3 {[%clk 0:00:09.6]} 66... Ke5
{[%clk 0:00:26.4]} 67. Kg2 {[%clk 0:00:10]} 67... Kf4 {[%clk 0:00:13]} 68. Nxg3
{[%clk 0:00:10.5]} 68... Nxg3 {[%clk 0:00:11.6]} 69. Kxh2 {[%clk 0:00:11.8]}
1/2-1/2

[Event "GrandPrix_29.05"]
[Site "Chess.com"]
[Date "2020.05.29"]
[Round "2"]
[White "Msb2"]
[Black "AlexVanGog"]
[Result "1-0"]
[WhiteElo "2258"]
[BlackElo "2159"]
[TimeControl "600+2"]
[EndTime "9:58:56 PDT"]
[Termination "Msb2 won by resignation"]

1. d4 {[%clk 0:10:01.9]} 1... Nf6 {[%clk 0:10:00]} 2. c4 {[%clk 0:10:02.7]} 2...
e6 {[%clk 0:10:01.2]} 3. Nc3 {[%clk 0:10:03.6]} 3... Bb4 {[%clk 0:10:02.1]} 4.
e3 {[%clk 0:10:05]} 4... O-O {[%clk 0:10:01]} 5. Bd2 {[%clk 0:10:06]} 5... d5
{[%clk 0:09:57.8]} 6. Nf3 {[%clk 0:10:05.4]} 6... b6 {[%clk 0:09:55.9]} 7. cxd5
{[%clk 0:10:05.2]} 7... exd5 {[%clk 0:09:56.9]} 8. Bd3 {[%clk 0:10:06.8]} 8...
Bb7 {[%clk 0:09:57.4]} 9. O-O {[%clk 0:10:05.9]} 9... Nbd7 {[%clk 0:09:54.6]}
10. Rc1 {[%clk 0:10:06.1]} 10... Be7 {[%clk 0:09:10.8]} 11. Qc2 {[%clk
0:09:34.2]} 11... c5 {[%clk 0:09:02.6]} 12. Ne5 {[%clk 0:09:34.6]} 12... g6
{[%clk 0:07:51.9]} 13. f4 {[%clk 0:09:10.4]} 13... Rc8 {[%clk 0:07:44.1]} 14.
Qb1 {[%clk 0:08:16.8]} 14... a6 {[%clk 0:06:08.4]} 15. a4 {[%clk 0:07:54.1]}
15... c4 {[%clk 0:05:24.5]} 16. Be2 {[%clk 0:07:51.6]} 16... Bb4 {[%clk
0:05:22.7]} 17. b3 {[%clk 0:07:03.3]} 17... Bxc3 {[%clk 0:05:16.1]} 18. Bxc3
{[%clk 0:07:03.2]} 18... cxb3 {[%clk 0:04:42.7]} 19. Qxb3 {[%clk 0:06:56.8]}
19... Re8 {[%clk 0:03:38.6]} 20. Bf3 {[%clk 0:06:45.3]} 20... Nf8 {[%clk
0:03:10.7]} 21. Rb1 {[%clk 0:06:23.4]} 21... N8d7 {[%clk 0:02:10.2]} 22. Bd2
{[%clk 0:06:17.2]} 22... Re6 {[%clk 0:01:57.4]} 23. Be1 {[%clk 0:04:52.5]} 23...
Ne4 {[%clk 0:01:20.7]} 24. Bxe4 {[%clk 0:03:54.6]} 24... dxe4 {[%clk 0:01:21.3]}
25. Nxf7 {[%clk 0:03:44.9]} 25... Kxf7 {[%clk 0:01:20.8]} 26. f5 {[%clk
0:03:46.5]} 26... gxf5 {[%clk 0:01:16.3]} 27. Rxf5+ {[%clk 0:03:48.4]} 27... Nf6
{[%clk 0:01:17.3]} 28. Bh4 {[%clk 0:03:49.3]} 28... Bd5 {[%clk 0:01:08]} 29.
Bxf6 {[%clk 0:03:37.8]} 29... Bxb3 {[%clk 0:00:53.6]} 30. Bxd8+ {[%clk
0:03:38.4]} 30... Kg6 {[%clk 0:00:43.8]} 31. Rg5+ {[%clk 0:03:30]} 31... Kh6
{[%clk 0:00:44.9]} 32. Rg8 {[%clk 0:03:00.3]} 32... Rc3 {[%clk 0:00:33.2]} 33.
Bg5+ {[%clk 0:01:46.4]} 33... Kh5 {[%clk 0:00:33.8]} 34. Rf1 {[%clk 0:01:33.7]}
34... Rg6 {[%clk 0:00:31.2]} 35. Rxg6 {[%clk 0:01:34.8]} 35... Kxg6 {[%clk
0:00:31.8]} 36. h4 {[%clk 0:01:36.1]} 36... b5 {[%clk 0:00:26]} 37. Rf6+ {[%clk
0:01:34.7]} 37... Kg7 {[%clk 0:00:25.6]} 38. a5 {[%clk 0:01:11.3]} 38... Bd5
{[%clk 0:00:24.9]} 39. Rxa6 {[%clk 0:01:12.5]} 39... b4 {[%clk 0:00:25.7]} 40.
Rb6 {[%clk 0:01:12.6]} 40... b3 {[%clk 0:00:26]} 41. a6 {[%clk 0:00:42.1]} 41...
Rc2 {[%clk 0:00:16.1]} 42. Kh2 {[%clk 0:00:43.4]} 42... Ra2 {[%clk 0:00:16.6]}
43. Kg3 {[%clk 0:00:18.7]} 43... Bc4 {[%clk 0:00:17.4]} 44. Kf4 {[%clk
0:00:16.9]} 44... Rxa6 {[%clk 0:00:17.6]} 45. Rb7+ {[%clk 0:00:17.6]} 45... Kg8
{[%clk 0:00:17.4]} 46. Kxe4 {[%clk 0:00:14.7]} 46... Re6+ {[%clk 0:00:18.2]} 47.
Kf4 {[%clk 0:00:15.8]} 47... Bd5 {[%clk 0:00:18]} 48. Rb5 {[%clk 0:00:15.7]}
48... Bc4 {[%clk 0:00:18.1]} 49. Rb4 {[%clk 0:00:16.5]} 49... Bd5 {[%clk
0:00:17.4]} 50. Kf5 {[%clk 0:00:15.5]} 50... h6 {[%clk 0:00:17.8]} 51. Bf6
{[%clk 0:00:11.6]} 51... Kf7 {[%clk 0:00:17.1]} 52. Be5 {[%clk 0:00:12.8]} 52...
Rg6 {[%clk 0:00:12.7]} 53. e4 {[%clk 0:00:11.2]} 53... Be6+ {[%clk 0:00:11.9]}
54. Kf4 {[%clk 0:00:12.7]} 54... Rxg2 {[%clk 0:00:12.5]} 55. d5 {[%clk 0:00:13]}
55... Bd7 {[%clk 0:00:13.7]} 56. Rxb3 {[%clk 0:00:13.2]} 56... Rg4+ {[%clk
0:00:15.3]} 57. Kf3 {[%clk 0:00:14.5]} 57... Rxh4 {[%clk 0:00:16.8]} 58. Rb7
{[%clk 0:00:15.8]} 58... Ke8 {[%clk 0:00:17.7]} 59. Bf6 {[%clk 0:00:15]} 59...
Rh1 {[%clk 0:00:16.5]} 60. Kf4 {[%clk 0:00:15.9]} 60... h5 {[%clk 0:00:17.3]}
61. e5 {[%clk 0:00:15.9]} 61... Re1 {[%clk 0:00:16.8]} 62. e6 {[%clk 0:00:14.3]}
62... Bxe6 {[%clk 0:00:17.6]} 63. Re7+ {[%clk 0:00:15.3]} 63... Kf8 {[%clk
0:00:18.5]} 64. Rxe6 {[%clk 0:00:12.3]} 64... Rd1 {[%clk 0:00:19.8]} 65. Ke5
{[%clk 0:00:13.5]} 65... Re1+ {[%clk 0:00:18.5]} 66. Kd6 {[%clk 0:00:14.2]}
66... Rd1 {[%clk 0:00:19.3]} 67. Re5 {[%clk 0:00:12.4]} 67... Kf7 {[%clk
0:00:20.5]} 68. Bd8 {[%clk 0:00:13.7]} 68... Kg6 {[%clk 0:00:21]} 69. Rg5+
{[%clk 0:00:14.4]} 69... Kh6 {[%clk 0:00:22]} 70. Rg8 {[%clk 0:00:16]} 70... Kh7
{[%clk 0:00:22.8]} 71. Rg2 {[%clk 0:00:16.9]} 71... Ra1 {[%clk 0:00:22]} 72. Kc6
{[%clk 0:00:16.3]} 72... Rc1+ {[%clk 0:00:22.6]} 73. Kd7 {[%clk 0:00:17.4]} 1-0

[Event "GrandPrix_29.05"]
[Site "Chess.com"]
[Date "2020.05.29"]
[Round "2"]
[White "grunbergmihai"]
[Black "Aliakbarov_Anar"]
[Result "1/2-1/2"]
[WhiteElo "1707"]
[BlackElo "2105"]
[TimeControl "600+2"]
[EndTime "9:59:01 PDT"]
[Termination "Game drawn - insufficient material"]

1. Nf3 {[%clk 0:10:01.9]} 1... d5 {[%clk 0:09:49]} 2. c4 {[%clk 0:10:01.7]} 2...
e6 {[%clk 0:09:44.8]} 3. g3 {[%clk 0:10:01.8]} 3... Nf6 {[%clk 0:09:44]} 4. Bg2
{[%clk 0:10:02.9]} 4... Be7 {[%clk 0:09:38.7]} 5. O-O {[%clk 0:10:03.9]} 5...
O-O {[%clk 0:09:37.8]} 6. d4 {[%clk 0:10:04.8]} 6... dxc4 {[%clk 0:09:35.4]} 7.
Qc2 {[%clk 0:10:05.9]} 7... c6 {[%clk 0:09:32.2]} 8. Qxc4 {[%clk 0:09:54.6]}
8... b5 {[%clk 0:09:30.6]} 9. Qb3 {[%clk 0:09:48.2]} 9... Bb7 {[%clk 0:09:10.2]}
10. Nc3 {[%clk 0:09:37.1]} 10... a6 {[%clk 0:09:00.9]} 11. Rd1 {[%clk
0:09:31.9]} 11... Nbd7 {[%clk 0:08:58.7]} 12. a4 {[%clk 0:09:27.3]} 12... b4
{[%clk 0:08:25.1]} 13. Na2 {[%clk 0:09:14.2]} 13... c5 {[%clk 0:07:43.6]} 14.
Bg5 {[%clk 0:08:49.5]} 14... Bd5 {[%clk 0:07:24.7]} 15. Qe3 {[%clk 0:08:49.2]}
15... c4 {[%clk 0:07:12.1]} 16. Bxf6 {[%clk 0:08:33.4]} 16... Nxf6 {[%clk
0:06:53.3]} 17. Ne5 {[%clk 0:08:33.8]} 17... Rc8 {[%clk 0:06:29]} 18. Nc1 {[%clk
0:07:48.9]} 18... a5 {[%clk 0:06:17.4]} 19. Qd2 {[%clk 0:07:13.9]} 19... Bxg2
{[%clk 0:05:22.5]} 20. Kxg2 {[%clk 0:07:14]} 20... c3 {[%clk 0:05:16.8]} 21.
bxc3 {[%clk 0:07:12.7]} 21... Ne4 {[%clk 0:05:13.5]} 22. Qd3 {[%clk 0:07:03.8]}
22... Nxc3 {[%clk 0:05:11.8]} 23. Rd2 {[%clk 0:06:59.7]} 23... Nxa4 {[%clk
0:04:53.3]} 24. Rxa4 {[%clk 0:06:42.4]} 24... Rxc1 {[%clk 0:04:51.7]} 25. Qb5
{[%clk 0:06:32.1]} 25... Qc8 {[%clk 0:03:09.5]} 26. Rxa5 {[%clk 0:05:31]} 26...
Qc3 {[%clk 0:03:07.9]} 27. Qd3 {[%clk 0:04:25.4]} 27... Bd6 {[%clk 0:01:26.9]}
28. Nf3 {[%clk 0:02:32.5]} 28... Rb8 {[%clk 0:01:05.2]} 29. Rb5 {[%clk
0:02:15.9]} 29... Rc8 {[%clk 0:00:31.8]} 30. d5 {[%clk 0:02:06.6]} 30... Qxd3
{[%clk 0:00:30.2]} 31. Rxd3 {[%clk 0:02:06]} 31... exd5 {[%clk 0:00:30.1]} 32.
Rbxd5 {[%clk 0:02:03.1]} 32... Bf8 {[%clk 0:00:31.2]} 33. Rd8 {[%clk 0:01:57.3]}
33... f6 {[%clk 0:00:26.8]} 34. Rxc8 {[%clk 0:01:51.1]} 34... Rxc8 {[%clk
0:00:28.7]} 35. Nd4 {[%clk 0:01:39.4]} 35... Kf7 {[%clk 0:00:25.8]} 36. Kf3
{[%clk 0:01:37.5]} 36... Rd8 {[%clk 0:00:24.6]} 37. Nb3 {[%clk 0:01:29.6]} 37...
Rc8 {[%clk 0:00:18.9]} 38. Ke3 {[%clk 0:01:24.4]} 38... Rc2 {[%clk 0:00:17.4]}
39. Rd2 {[%clk 0:01:23.9]} 39... Rc3+ {[%clk 0:00:18.5]} 40. Rd3 {[%clk
0:01:25.1]} 40... Rc2 {[%clk 0:00:20.1]} 41. f4 {[%clk 0:01:21.8]} 41... f5
{[%clk 0:00:18.9]} 42. Kf3 {[%clk 0:01:14.2]} 42... g6 {[%clk 0:00:16.7]} 43. h3
{[%clk 0:01:10.7]} 43... h5 {[%clk 0:00:17.4]} 44. e4 {[%clk 0:01:05.7]} 44...
fxe4+ {[%clk 0:00:17.3]} 45. Kxe4 {[%clk 0:01:06.4]} 45... Rc3 {[%clk
0:00:15.8]} 46. Rxc3 {[%clk 0:00:51.2]} 46... bxc3 {[%clk 0:00:17.7]} 47. Kd3
{[%clk 0:00:47.2]} 47... Bg7 {[%clk 0:00:18.3]} 48. Nc5 {[%clk 0:00:46.4]} 48...
Ke7 {[%clk 0:00:11.4]} 49. Ne4 {[%clk 0:00:44.6]} 49... Bh6 {[%clk 0:00:09.5]}
50. h4 {[%clk 0:00:28.7]} 50... Bg7 {[%clk 0:00:10.5]} 51. Nf2 {[%clk
0:00:09.2]} 51... Ke6 {[%clk 0:00:10.7]} 52. g4 {[%clk 0:00:08.9]} 52... hxg4
{[%clk 0:00:11.4]} 53. Nxg4 {[%clk 0:00:09.8]} 53... Kf5 {[%clk 0:00:12.8]} 54.
Ne3+ {[%clk 0:00:06.1]} 54... Kxf4 {[%clk 0:00:14.1]} 55. Nd5+ {[%clk
0:00:07.3]} 55... Kg4 {[%clk 0:00:13.7]} 56. Ne7 {[%clk 0:00:08.5]} 56... Kh5
{[%clk 0:00:14.8]} 57. Kc2 {[%clk 0:00:07.3]} 57... Bf6 {[%clk 0:00:15.7]} 58.
Nd5 {[%clk 0:00:08.4]} 58... Be5 {[%clk 0:00:14.8]} 59. Ne7 {[%clk 0:00:08.9]}
59... Bf6 {[%clk 0:00:15.5]} 60. Nd5 {[%clk 0:00:10]} 60... Bd4 {[%clk
0:00:12.8]} 61. Ne7 {[%clk 0:00:10.5]} 61... Bg7 {[%clk 0:00:11.5]} 62. Kd3
{[%clk 0:00:09.2]} 62... Bf6 {[%clk 0:00:11.1]} 63. Nd5 {[%clk 0:00:09.7]} 63...
Bxh4 {[%clk 0:00:05.3]} 64. Nf4+ {[%clk 0:00:09.7]} 64... Kg5 {[%clk 0:00:03.9]}
65. Nxg6 {[%clk 0:00:10.7]} 65... Kxg6 {[%clk 0:00:05.2]} 66. Kxc3 {[%clk
0:00:11.8]} 1/2-1/2

[Event "GrandPrix_29.05"]
[Site "Chess.com"]
[Date "2020.05.29"]
[Round "2"]
[White "tigra"]
[Black "Chessialist"]
[Result "1/2-1/2"]
[WhiteElo "2545"]
[BlackElo "2335"]
[TimeControl "600+2"]
[EndTime "9:59:07 PDT"]
[Termination "Game drawn - insufficient material"]

1. e4 {[%clk 0:09:57.4]} 1... c5 {[%clk 0:10:00.5]} 2. Nf3 {[%clk 0:09:45.4]}
2... Nc6 {[%clk 0:10:00.3]} 3. d4 {[%clk 0:09:29.4]} 3... cxd4 {[%clk
0:09:59.2]} 4. Nxd4 {[%clk 0:09:31.3]} 4... Qb6 {[%clk 0:10:00.4]} 5. Nb3 {[%clk
0:09:31.6]} 5... Nf6 {[%clk 0:09:54.2]} 6. Nc3 {[%clk 0:09:32.1]} 6... e6 {[%clk
0:09:52.5]} 7. Be3 {[%clk 0:09:32.5]} 7... Qc7 {[%clk 0:09:52.8]} 8. a3 {[%clk
0:09:19.1]} 8... a6 {[%clk 0:09:29]} 9. f4 {[%clk 0:09:13.3]} 9... d6 {[%clk
0:09:29]} 10. g4 {[%clk 0:08:32.5]} 10... b5 {[%clk 0:09:27.4]} 11. Bg2 {[%clk
0:08:19.5]} 11... Bb7 {[%clk 0:09:26.8]} 12. Qe2 {[%clk 0:08:17.9]} 12... Be7
{[%clk 0:09:25.5]} 13. h4 {[%clk 0:08:11.5]} 13... h5 {[%clk 0:08:27]} 14. g5
{[%clk 0:07:43.3]} 14... Ng4 {[%clk 0:08:25.2]} 15. Bg1 {[%clk 0:07:44.5]} 15...
b4 {[%clk 0:08:03.5]} 16. axb4 {[%clk 0:07:43.4]} 16... Nxb4 {[%clk 0:08:05.4]}
17. Na5 {[%clk 0:07:28.7]} 17... O-O {[%clk 0:06:14.4]} 18. Nxb7 {[%clk
0:05:52]} 18... Qxb7 {[%clk 0:06:16.3]} 19. Na4 {[%clk 0:05:50.1]} 19... Qb5
{[%clk 0:04:34.5]} 20. c4 {[%clk 0:04:11.7]} 20... Qb7 {[%clk 0:03:17.7]} 21.
Rh3 {[%clk 0:03:55.3]} 21... Rac8 {[%clk 0:03:10]} 22. Rb3 {[%clk 0:02:39]}
22... a5 {[%clk 0:01:36.5]} 23. Nb6 {[%clk 0:00:46.5]} 23... Rc6 {[%clk
0:01:35.7]} 24. c5 {[%clk 0:00:40.7]} 24... dxc5 {[%clk 0:01:19.8]} 25. Nc4
{[%clk 0:00:42]} 25... Ra6 {[%clk 0:01:12.2]} 26. e5 {[%clk 0:00:28.3]} 26...
Qc7 {[%clk 0:01:01.4]} 27. Na3 {[%clk 0:00:12.3]} 27... Qa7 {[%clk 0:00:34]} 28.
Nb5 {[%clk 0:00:12.2]} 28... Qb6 {[%clk 0:00:34.7]} 29. Nc3 {[%clk 0:00:13.1]}
29... a4 {[%clk 0:00:31.9]} 30. Rxa4 {[%clk 0:00:12]} 30... Rxa4 {[%clk
0:00:30.7]} 31. Nxa4 {[%clk 0:00:13.9]} 31... Qa5 {[%clk 0:00:32.3]} 32. Nc3
{[%clk 0:00:15.1]} 32... Qa1+ {[%clk 0:00:28.1]} 33. Qd1 {[%clk 0:00:16.5]}
33... Nd3+ {[%clk 0:00:28.5]} 34. Kf1 {[%clk 0:00:11.5]} 34... Qxd1+ {[%clk
0:00:24.5]} 35. Nxd1 {[%clk 0:00:13.4]} 35... Nxf4 {[%clk 0:00:26.1]} 36. Rb7
{[%clk 0:00:13.6]} 36... Re8 {[%clk 0:00:25.6]} 37. Bc6 {[%clk 0:00:12.2]} 37...
Rd8 {[%clk 0:00:26.7]} 38. Nc3 {[%clk 0:00:10.6]} 38... Nxe5 {[%clk 0:00:24.9]}
39. Rxe7 {[%clk 0:00:08.4]} 39... Nxc6 {[%clk 0:00:25.5]} 40. Rc7 {[%clk
0:00:10.3]} 40... Ne5 {[%clk 0:00:24.4]} 41. Bxc5 {[%clk 0:00:11.3]} 41... Rd2
{[%clk 0:00:14.2]} 42. Ne4 {[%clk 0:00:09.9]} 42... Rd1+ {[%clk 0:00:12.1]} 43.
Kf2 {[%clk 0:00:10.9]} 43... Ned3+ {[%clk 0:00:13.4]} 44. Ke3 {[%clk 0:00:11.8]}
44... Nd5+ {[%clk 0:00:12]} 45. Ke2 {[%clk 0:00:12.2]} 45... Re1+ {[%clk
0:00:13.2]} 46. Kxd3 {[%clk 0:00:13.4]} 46... Nxc7 {[%clk 0:00:14.9]} 47. b4
{[%clk 0:00:13.6]} 47... Nd5 {[%clk 0:00:15.5]} 48. b5 {[%clk 0:00:14.1]} 48...
Rb1 {[%clk 0:00:16.5]} 49. Nd6 {[%clk 0:00:13.9]} 49... Nf4+ {[%clk 0:00:15.6]}
50. Kc4 {[%clk 0:00:14.9]} 50... Ng6 {[%clk 0:00:15.5]} 51. Bd4 {[%clk
0:00:14.1]} 51... Nxh4 {[%clk 0:00:08.6]} 52. b6 {[%clk 0:00:15.3]} 52... Nf3
{[%clk 0:00:09.5]} 53. b7 {[%clk 0:00:11.5]} 53... Rxb7 {[%clk 0:00:06.7]} 54.
Nxb7 {[%clk 0:00:12.2]} 54... Nxg5 {[%clk 0:00:07.8]} 55. Nd6 {[%clk 0:00:12.7]}
55... f6 {[%clk 0:00:09.3]} 56. Bf2 {[%clk 0:00:13]} 56... Kh7 {[%clk
0:00:09.4]} 57. Kd3 {[%clk 0:00:13.4]} 57... Kg6 {[%clk 0:00:11.1]} 58. Ne8
{[%clk 0:00:12.9]} 58... Nf7 {[%clk 0:00:13]} 59. Ke4 {[%clk 0:00:13.5]} 59...
Ng5+ {[%clk 0:00:13.4]} 60. Ke3 {[%clk 0:00:13.9]} 60... e5 {[%clk 0:00:14.3]}
61. Be1 {[%clk 0:00:14.2]} 61... f5 {[%clk 0:00:15.7]} 62. Bc3 {[%clk
0:00:14.9]} 62... f4+ {[%clk 0:00:16.9]} 63. Ke2 {[%clk 0:00:16.3]} 63... Nf7
{[%clk 0:00:18]} 64. Kf3 {[%clk 0:00:17.5]} 64... h4 {[%clk 0:00:16.7]} 65. Kg4
{[%clk 0:00:18.6]} 65... h3 {[%clk 0:00:17.9]} 66. Kxh3 {[%clk 0:00:19.9]} 66...
Kf5 {[%clk 0:00:19.8]} 67. Nxg7+ {[%clk 0:00:20.1]} 67... Ke4 {[%clk 0:00:21.7]}
68. Kg2 {[%clk 0:00:20.6]} 68... Ng5 {[%clk 0:00:22.8]} 69. Nh5 {[%clk
0:00:19.6]} 69... Kf5 {[%clk 0:00:23.4]} 70. Kf1 {[%clk 0:00:18.1]} 70... e4
{[%clk 0:00:24.6]} 71. Bd2 {[%clk 0:00:16.3]} 71... e3 {[%clk 0:00:24.9]} 72.
Bc1 {[%clk 0:00:16.6]} 72... Ke4 {[%clk 0:00:23.5]} 73. Nxf4 {[%clk 0:00:17.8]}
73... Kxf4 {[%clk 0:00:24.2]} 74. Bxe3+ {[%clk 0:00:19.4]} 1/2-1/2